[Event "Late-Titled-Tuesday-Blitz-October-03-2023"]
[Site "Chess.com"]
[Date "2023.10.03"]
[Round "1"]
[White "FrankDux44"]
[Black "drdaro"]
[Result "1-0"]
[WhiteElo "2578"]
[BlackElo "2251"]
[TimeControl "180+1"]
[EndTime "14:06:24 PDT"]
[Termination "FrankDux44 won by checkmate"]

1. d4 {[%clk 0:03:00.9]} 1... g6 {[%clk 0:02:56.8]} 2. e4 {[%clk 0:03:00.3]}
2... d6 {[%clk 0:02:56.4]} 3. Nc3 {[%clk 0:03:01.2]} 3... Bg7 {[%clk 0:02:56.6]}
4. Be3 {[%clk 0:02:57.8]} 4... a6 {[%clk 0:02:55.7]} 5. Qd2 {[%clk 0:02:56]}
5... b5 {[%clk 0:02:54.8]} 6. O-O-O {[%clk 0:02:55.8]} 6... Nf6 {[%clk
0:02:45.3]} 7. f3 {[%clk 0:02:55.9]} 7... h5 {[%clk 0:02:43.9]} 8. Kb1 {[%clk
0:02:55.3]} 8... b4 {[%clk 0:02:39.9]} 9. Nd5 {[%clk 0:02:48.8]} 9... Nxd5
{[%clk 0:02:39.1]} 10. exd5 {[%clk 0:02:49.7]} 10... a5 {[%clk 0:02:36.8]} 11.
Bg5 {[%clk 0:02:20.9]} 11... Nd7 {[%clk 0:02:36.5]} 12. Bb5 {[%clk 0:02:17.1]}
12... O-O {[%clk 0:02:34.1]} 13. g4 {[%clk 0:02:16.2]} 13... hxg4 {[%clk
0:02:31.7]} 14. fxg4 {[%clk 0:02:12.1]} 14... Nb6 {[%clk 0:02:30.2]} 15. Bc6
{[%clk 0:02:06.2]} 15... Bxg4 {[%clk 0:02:29.6]} 16. Re1 {[%clk 0:02:05.6]}
16... f6 {[%clk 0:02:05.7]} 17. Bh6 {[%clk 0:01:53.2]} 17... Rb8 {[%clk
0:02:00.2]} 18. h4 {[%clk 0:01:49.8]} 18... Nc4 {[%clk 0:01:29.8]} 19. Qf4
{[%clk 0:01:48.4]} 19... Bh5 {[%clk 0:01:27.5]} 20. Bxg7 {[%clk 0:01:45.7]}
20... Kxg7 {[%clk 0:01:27.5]} 21. Nf3 {[%clk 0:01:35.7]} 21... Bxf3 {[%clk
0:01:27.2]} 22. Rhg1 {[%clk 0:01:29.2]} 22... Bh5 {[%clk 0:01:23.6]} 23. b3
{[%clk 0:01:23.4]} 23... Na3+ {[%clk 0:00:56.1]} 24. Kb2 {[%clk 0:01:23.3]}
24... Nb5 {[%clk 0:00:55.2]} 25. Re3 {[%clk 0:01:20.1]} 25... a4 {[%clk
0:00:42.5]} 26. Reg3 {[%clk 0:01:13.9]} 26... axb3 {[%clk 0:00:33.5]} 27. Qf5
{[%clk 0:01:12.5]} 27... Kf7 {[%clk 0:00:04.2]} 28. Rxg6 {[%clk 0:01:07.4]}
28... Rh8 {[%clk 0:00:03.9]} 29. Qxh5 {[%clk 0:00:53.4]} 29... Rxh5 {[%clk
0:00:02]} 30. Rg7+ {[%clk 0:00:53.5]} 30... Kf8 {[%clk 0:00:02.4]} 31. Rg8+
{[%clk 0:00:53.7]} 31... Kf7 {[%clk 0:00:03]} 32. R1g7# {[%clk 0:00:50.8]} 1-0

[Event "Late-Titled-Tuesday-Blitz-October-03-2023"]
[Site "Chess.com"]
[Date "2023.10.03"]
[Round "1"]
[White "jsdbv18"]
[Black "carlospaul1990"]
[Result "1-0"]
[WhiteElo "2628"]
[BlackElo "2324"]
[TimeControl "180+1"]
[EndTime "14:06:25 PDT"]
[Termination "jsdbv18 won by resignation"]

1. d4 {[%clk 0:02:59.9]} 1... Nf6 {[%clk 0:02:59.2]} 2. c4 {[%clk 0:03:00]} 2...
e6 {[%clk 0:02:59.1]} 3. Nf3 {[%clk 0:02:59.7]} 3... d5 {[%clk 0:02:48.9]} 4.
Nc3 {[%clk 0:02:59.4]} 4... Bb4 {[%clk 0:02:41.5]} 5. Bd2 {[%clk 0:02:56.4]}
5... O-O {[%clk 0:02:40.9]} 6. e3 {[%clk 0:02:56.7]} 6... c6 {[%clk 0:02:40]} 7.
a3 {[%clk 0:02:56.8]} 7... Bd6 {[%clk 0:02:38.3]} 8. Qc2 {[%clk 0:02:56.3]} 8...
Nbd7 {[%clk 0:02:38.1]} 9. Bd3 {[%clk 0:02:55.3]} 9... dxc4 {[%clk 0:02:37.8]}
10. Bxc4 {[%clk 0:02:55.7]} 10... b5 {[%clk 0:02:37]} 11. Bd3 {[%clk 0:02:55.3]}
11... Bb7 {[%clk 0:02:37.6]} 12. b4 {[%clk 0:02:53.5]} 12... a5 {[%clk
0:02:36.4]} 13. Rb1 {[%clk 0:02:52.3]} 13... axb4 {[%clk 0:02:35.5]} 14. axb4
{[%clk 0:02:52.9]} 14... e5 {[%clk 0:02:32.2]} 15. O-O {[%clk 0:02:48.7]} 15...
Re8 {[%clk 0:02:27.8]} 16. Rfc1 {[%clk 0:02:40.9]} 16... Qe7 {[%clk 0:02:22.8]}
17. Ne4 {[%clk 0:02:36]} 17... Nxe4 {[%clk 0:02:08.2]} 18. Bxe4 {[%clk
0:02:36.1]} 18... Rac8 {[%clk 0:02:08.8]} 19. Bxh7+ {[%clk 0:02:35.6]} 19... Kh8
{[%clk 0:02:09.4]} 20. Bf5 {[%clk 0:02:35.1]} 20... e4 {[%clk 0:01:51.9]} 21.
Ng5 {[%clk 0:02:35]} 21... Qxg5 {[%clk 0:01:24.6]} 22. Bxd7 {[%clk 0:02:35]}
22... Rcd8 {[%clk 0:01:25]} 23. Bxe8 {[%clk 0:02:34.9]} 23... Rxe8 {[%clk
0:01:25.6]} 24. Ra1 {[%clk 0:02:31.5]} 24... Re6 {[%clk 0:01:24.1]} 25. g3
{[%clk 0:02:06]} 25... Qf5 {[%clk 0:01:05.5]} 26. Qd1 {[%clk 0:01:59.4]} 26...
Rh6 {[%clk 0:01:02.9]} 27. Qf1 {[%clk 0:01:59.8]} 27... Bc8 {[%clk 0:00:53.3]}
28. Ra8 {[%clk 0:01:55.1]} 28... Kh7 {[%clk 0:00:52.6]} 29. Rxc6 {[%clk
0:01:51.2]} 29... Bb7 {[%clk 0:00:52.4]} 30. Raa6 {[%clk 0:01:35.6]} 30... Bxc6
{[%clk 0:00:44.4]} 31. Rxc6 {[%clk 0:01:36.5]} 31... Qh5 {[%clk 0:00:38.6]} 32.
h4 {[%clk 0:01:29.6]} 32... Qg4 {[%clk 0:00:37.9]} 33. Qxb5 {[%clk 0:01:14.7]}
33... Qd1+ {[%clk 0:00:31.3]} 34. Kg2 {[%clk 0:01:12.8]} 34... Qf3+ {[%clk
0:00:27.9]} 35. Kf1 {[%clk 0:01:12.8]} 35... Qh1+ {[%clk 0:00:26.2]} 36. Ke2
{[%clk 0:01:12.9]} 36... Qf3+ {[%clk 0:00:24.8]} 37. Ke1 {[%clk 0:01:13.3]}
37... Bxg3 {[%clk 0:00:23.5]} 38. Rxh6+ {[%clk 0:01:12]} 38... gxh6 {[%clk
0:00:21.1]} 39. fxg3 {[%clk 0:01:11.2]} 39... Qxg3+ {[%clk 0:00:20.7]} 40. Kd1
{[%clk 0:01:11.7]} 40... Qxh4 {[%clk 0:00:20.3]} 41. Qf5+ {[%clk 0:01:11]} 41...
Kg7 {[%clk 0:00:20.1]} 42. b5 {[%clk 0:01:10.8]} 42... Qh1+ {[%clk 0:00:20.3]}
43. Kc2 {[%clk 0:01:10.8]} 43... Qf3 {[%clk 0:00:20.3]} 44. Qxf3 {[%clk
0:01:07.9]} 44... exf3 {[%clk 0:00:20.8]} 45. Kd3 {[%clk 0:01:08.6]} 45... h5
{[%clk 0:00:19.8]} 46. Be1 {[%clk 0:01:08]} 46... f5 {[%clk 0:00:20.1]} 47. b6
{[%clk 0:01:07.9]} 1-0

[Event "Late-Titled-Tuesday-Blitz-October-03-2023"]
[Site "Chess.com"]
[Date "2023.10.03"]
[Round "1"]
[White "Evandro_Barbosa"]
[Black "Nick12772"]
[Result "1-0"]
[WhiteElo "2668"]
[BlackElo "2366"]
[TimeControl "180+1"]
[EndTime "14:06:28 PDT"]
[Termination "Evandro_Barbosa won by resignation"]

1. e4 {[%clk 0:03:00.9]} 1... e6 {[%clk 0:02:59]} 2. d3 {[%clk 0:02:58.5]} 2...
d5 {[%clk 0:02:59.9]} 3. Qe2 {[%clk 0:02:58.6]} 3... Nf6 {[%clk 0:02:50.6]} 4.
Nf3 {[%clk 0:02:59]} 4... Nc6 {[%clk 0:02:50.6]} 5. c3 {[%clk 0:02:58.8]} 5...
dxe4 {[%clk 0:02:44.7]} 6. dxe4 {[%clk 0:02:59.7]} 6... e5 {[%clk 0:02:36.5]} 7.
Qc2 {[%clk 0:02:59.8]} 7... a5 {[%clk 0:02:34.2]} 8. Bb5 {[%clk 0:02:59.6]} 8...
Bd6 {[%clk 0:02:27.8]} 9. Bg5 {[%clk 0:02:58.9]} 9... Bd7 {[%clk 0:02:24]} 10.
Nbd2 {[%clk 0:02:58.6]} 10... h6 {[%clk 0:02:22.9]} 11. Bh4 {[%clk 0:02:58.2]}
11... Qe7 {[%clk 0:02:16.6]} 12. O-O {[%clk 0:02:56.3]} 12... O-O {[%clk
0:02:16.1]} 13. a4 {[%clk 0:02:52.9]} 13... Bc5 {[%clk 0:02:14.2]} 14. Nc4
{[%clk 0:02:49.6]} 14... Qe6 {[%clk 0:01:58.2]} 15. Rad1 {[%clk 0:02:37.2]}
15... Be7 {[%clk 0:01:24.3]} 16. Rfe1 {[%clk 0:02:13.2]} 16... Rad8 {[%clk
0:01:18.8]} 17. h3 {[%clk 0:02:01]} 17... b6 {[%clk 0:01:12.2]} 18. Ne3 {[%clk
0:01:33]} 18... Nb8 {[%clk 0:01:07.4]} 19. Bc4 {[%clk 0:01:31.6]} 19... Qc6
{[%clk 0:01:06.5]} 20. Nxe5 {[%clk 0:01:28.2]} 20... Qxa4 {[%clk 0:01:00.6]} 21.
b3 {[%clk 0:01:28]} 21... Qa3 {[%clk 0:00:53.6]} 22. Ng6 {[%clk 0:01:16.4]}
22... Rfe8 {[%clk 0:00:50.4]} 23. e5 {[%clk 0:01:14.7]} 23... Nd5 {[%clk
0:00:29.4]} 24. Bxd5 {[%clk 0:01:09.7]} 24... Bxh4 {[%clk 0:00:29.2]} 25. Nxh4
{[%clk 0:01:09.3]} 25... Be6 {[%clk 0:00:25]} 26. Bxe6 {[%clk 0:01:05.8]} 26...
fxe6 {[%clk 0:00:25.2]} 27. Nc4 {[%clk 0:01:01]} 27... Qe7 {[%clk 0:00:24.7]}
28. Nf3 {[%clk 0:00:56.8]} 28... Nc6 {[%clk 0:00:23.1]} 29. Rxd8 {[%clk
0:00:54.4]} 29... Rxd8 {[%clk 0:00:23.3]} 30. Rd1 {[%clk 0:00:54.4]} 30... Rf8
{[%clk 0:00:22.4]} 31. Qe4 {[%clk 0:00:53]} 31... Nd8 {[%clk 0:00:21]} 32. Nh4
{[%clk 0:00:47.2]} 32... Qf7 {[%clk 0:00:19.7]} 33. Rd2 {[%clk 0:00:41.8]} 33...
c5 {[%clk 0:00:18.4]} 34. Ng6 {[%clk 0:00:39.9]} 34... Re8 {[%clk 0:00:18.4]}
35. Nd6 {[%clk 0:00:39.7]} 1-0

[Event "Late-Titled-Tuesday-Blitz-October-03-2023"]
[Site "Chess.com"]
[Date "2023.10.03"]
[Round "1"]
[White "Mykola-Bortnyk"]
[Black "PlotnikovPavel"]
[Result "1-0"]
[WhiteElo "2944"]
[BlackElo "2484"]
[TimeControl "180+1"]
[EndTime "14:06:32 PDT"]
[Termination "Mykola-Bortnyk won on time"]

1. e4 {[%clk 0:03:00.2]} 1... e6 {[%clk 0:03:00.1]} 2. d4 {[%clk 0:03:00.1]}
2... d5 {[%clk 0:03:00.3]} 3. exd5 {[%clk 0:03:00.3]} 3... exd5 {[%clk
0:02:59.7]} 4. c4 {[%clk 0:03:00.7]} 4... Nf6 {[%clk 0:02:59]} 5. Nf3 {[%clk
0:03:00.7]} 5... Be7 {[%clk 0:02:59.1]} 6. Nc3 {[%clk 0:03:00.5]} 6... a6 {[%clk
0:02:59]} 7. c5 {[%clk 0:02:55.2]} 7... O-O {[%clk 0:02:58.2]} 8. h3 {[%clk
0:02:52.3]} 8... b6 {[%clk 0:02:58.2]} 9. cxb6 {[%clk 0:02:51.2]} 9... cxb6
{[%clk 0:02:59.1]} 10. Bd3 {[%clk 0:02:51.7]} 10... b5 {[%clk 0:02:58.7]} 11.
O-O {[%clk 0:02:48.5]} 11... Nc6 {[%clk 0:02:50.1]} 12. Re1 {[%clk 0:02:43.6]}
12... Re8 {[%clk 0:02:44.1]} 13. Bg5 {[%clk 0:02:20]} 13... Be6 {[%clk
0:02:26.6]} 14. Rc1 {[%clk 0:02:13.3]} 14... Qb6 {[%clk 0:02:23.7]} 15. Ne2
{[%clk 0:02:05]} 15... h6 {[%clk 0:02:06.9]} 16. Bh4 {[%clk 0:02:03.6]} 16...
Ne4 {[%clk 0:01:56.8]} 17. Bxe7 {[%clk 0:01:52]} 17... Nxe7 {[%clk 0:01:57.7]}
18. Nf4 {[%clk 0:01:51]} 18... Nf5 {[%clk 0:01:36.2]} 19. Bxe4 {[%clk
0:01:23.9]} 19... dxe4 {[%clk 0:01:34.1]} 20. Rxe4 {[%clk 0:01:24.8]} 20... Bxa2
{[%clk 0:01:17]} 21. Rxe8+ {[%clk 0:01:17.8]} 21... Rxe8 {[%clk 0:01:17.9]} 22.
b3 {[%clk 0:01:14]} 22... Re4 {[%clk 0:01:08.8]} 23. Rc8+ {[%clk 0:01:10.7]}
23... Kh7 {[%clk 0:01:08]} 24. Ne2 {[%clk 0:01:09.4]} 24... b4 {[%clk
0:00:30.5]} 25. Qc2 {[%clk 0:01:00.5]} 25... Qe6 {[%clk 0:00:23.5]} 26. Nc1
{[%clk 0:00:50.5]} 26... g6 {[%clk 0:00:17]} 27. Nxa2 {[%clk 0:00:45.1]} 27...
Re2 {[%clk 0:00:17]} 28. Qc5 {[%clk 0:00:38.1]} 28... Rxa2 {[%clk 0:00:02.9]}
29. Qf8 {[%clk 0:00:38.1]} 1-0

[Event "Late-Titled-Tuesday-Blitz-October-03-2023"]
[Site "Chess.com"]
[Date "2023.10.03"]
[Round "1"]
[White "littlepinkyboy"]
[Black "rookoco"]
[Result "1/2-1/2"]
[WhiteElo "2427"]
[BlackElo "2747"]
[TimeControl "180+1"]
[EndTime "14:06:35 PDT"]
[Termination "Game drawn by repetition"]

1. e4 {[%clk 0:02:58.7]} 1... c5 {[%clk 0:02:58.7]} 2. c3 {[%clk 0:02:55]} 2...
Nf6 {[%clk 0:02:54.8]} 3. e5 {[%clk 0:02:53.9]} 3... Nd5 {[%clk 0:02:54.4]} 4.
d4 {[%clk 0:02:54.4]} 4... cxd4 {[%clk 0:02:53.7]} 5. cxd4 {[%clk 0:02:55.3]}
5... d6 {[%clk 0:02:53.6]} 6. Nf3 {[%clk 0:02:50.6]} 6... Nc6 {[%clk 0:02:53.2]}
7. exd6 {[%clk 0:02:49]} 7... Qxd6 {[%clk 0:02:44]} 8. Nc3 {[%clk 0:02:49.3]}
8... g6 {[%clk 0:02:43.3]} 9. Bc4 {[%clk 0:02:45.8]} 9... Nxc3 {[%clk
0:02:37.3]} 10. bxc3 {[%clk 0:02:45.3]} 10... Bg7 {[%clk 0:02:37]} 11. O-O
{[%clk 0:02:44.3]} 11... O-O {[%clk 0:02:37.1]} 12. a4 {[%clk 0:02:40.8]} 12...
Qc7 {[%clk 0:02:34.7]} 13. Ba2 {[%clk 0:02:35.3]} 13... Bg4 {[%clk 0:02:29.7]}
14. h3 {[%clk 0:02:32.2]} 14... Bxf3 {[%clk 0:02:29.5]} 15. Qxf3 {[%clk
0:02:32.3]} 15... e5 {[%clk 0:02:25.6]} 16. d5 {[%clk 0:02:27.8]} 16... Nb4
{[%clk 0:02:03.3]} 17. Ba3 {[%clk 0:01:52.3]} 17... e4 {[%clk 0:01:54.1]} 18.
Qxe4 {[%clk 0:01:41.9]} 18... Nxa2 {[%clk 0:01:47.9]} 19. Rxa2 {[%clk 0:00:59]}
19... Rfe8 {[%clk 0:01:46.6]} 20. Qd3 {[%clk 0:00:56.5]} 20... Qxc3 {[%clk
0:01:45.3]} 21. Qxc3 {[%clk 0:00:56.2]} 21... Bxc3 {[%clk 0:01:46.2]} 22. Rc2
{[%clk 0:00:53.9]} 22... Be5 {[%clk 0:01:21.4]} 23. d6 {[%clk 0:00:33.3]} 23...
Rad8 {[%clk 0:01:20.6]} 24. Rd1 {[%clk 0:00:33]} 24... Rd7 {[%clk 0:01:18.7]}
25. Re2 {[%clk 0:00:29.2]} 25... Re6 {[%clk 0:01:17.6]} 26. Rd5 {[%clk
0:00:16.5]} 26... Bg7 {[%clk 0:01:03.8]} 27. Rxe6 {[%clk 0:00:16.8]} 27... fxe6
{[%clk 0:01:04.6]} 28. Rc5 {[%clk 0:00:17.2]} 28... Kf7 {[%clk 0:00:56.2]} 29.
Rc7 {[%clk 0:00:04.5]} 29... Ke8 {[%clk 0:00:56]} 30. Rc8+ {[%clk 0:00:05.2]}
30... Kf7 {[%clk 0:00:53.8]} 31. Rc7 {[%clk 0:00:05.8]} 31... Ke8 {[%clk
0:00:53.8]} 32. Rc8+ {[%clk 0:00:04.6]} 32... Rd8 {[%clk 0:00:53.7]} 33. Rc7
{[%clk 0:00:03.2]} 33... Rd7 {[%clk 0:00:47]} 1/2-1/2

[Event "Late-Titled-Tuesday-Blitz-October-03-2023"]
[Site "Chess.com"]
[Date "2023.10.03"]
[Round "1"]
[White "Saraisitave"]
[Black "Let_it_be_1"]
[Result "0-1"]
[WhiteElo "2338"]
[BlackElo "2647"]
[TimeControl "180+1"]
[EndTime "14:06:37 PDT"]
[Termination "Let_it_be_1 won by checkmate"]

1. e4 {[%clk 0:02:59.2]} 1... e6 {[%clk 0:02:59.2]} 2. d4 {[%clk 0:02:58.4]}
2... d5 {[%clk 0:03:00.1]} 3. Nc3 {[%clk 0:02:54.6]} 3... Nf6 {[%clk 0:03:00.2]}
4. Bg5 {[%clk 0:02:53]} 4... dxe4 {[%clk 0:03:00]} 5. Nxe4 {[%clk 0:02:52.2]}
5... Be7 {[%clk 0:03:00.5]} 6. Nxf6+ {[%clk 0:02:49.2]} 6... Bxf6 {[%clk
0:03:01.4]} 7. Bxf6 {[%clk 0:02:49]} 7... Qxf6 {[%clk 0:03:02.2]} 8. Nf3 {[%clk
0:02:39.9]} 8... O-O {[%clk 0:03:02.1]} 9. Bd3 {[%clk 0:02:36.9]} 9... c5 {[%clk
0:03:01.9]} 10. Qe2 {[%clk 0:02:36.1]} 10... cxd4 {[%clk 0:02:54.1]} 11. Qe4
{[%clk 0:02:31.6]} 11... Qh6 {[%clk 0:02:53.7]} 12. Nxd4 {[%clk 0:02:25.2]}
12... Nd7 {[%clk 0:02:48.4]} 13. Qe2 {[%clk 0:01:55.2]} 13... Nc5 {[%clk
0:02:35.9]} 14. Bc4 {[%clk 0:01:52.8]} 14... a6 {[%clk 0:02:31.9]} 15. a4 {[%clk
0:01:51]} 15... Qf4 {[%clk 0:02:17.1]} 16. c3 {[%clk 0:01:37.6]} 16... e5 {[%clk
0:02:13.5]} 17. Nc2 {[%clk 0:01:32.8]} 17... Bf5 {[%clk 0:01:57.7]} 18. Ne3
{[%clk 0:01:20.1]} 18... Rad8 {[%clk 0:01:53.7]} 19. Nxf5 {[%clk 0:01:07.9]}
19... Qxf5 {[%clk 0:01:51.5]} 20. O-O {[%clk 0:01:07.8]} 20... Nd3 {[%clk
0:01:46.5]} 21. b4 {[%clk 0:01:04.7]} 21... Nf4 {[%clk 0:01:42.9]} 22. Qf3
{[%clk 0:00:57.4]} 22... e4 {[%clk 0:01:25.6]} 23. Qe3 {[%clk 0:00:39.6]} 23...
b5 {[%clk 0:01:11]} 24. axb5 {[%clk 0:00:37.3]} 24... axb5 {[%clk 0:01:11.3]}
25. Ra5 {[%clk 0:00:36.4]} 25... Qg4 {[%clk 0:01:01.9]} 26. Qg3 {[%clk
0:00:10.2]} 26... Ne2+ {[%clk 0:00:35.3]} 27. Bxe2 {[%clk 0:00:09.4]} 27... Qxe2
{[%clk 0:00:36.2]} 28. Qg5 {[%clk 0:00:06]} 28... Rd1 {[%clk 0:00:31.5]} 29. Ra1
{[%clk 0:00:05.7]} 29... Qxf1# {[%clk 0:00:31.6]} 0-1

[Event "Late-Titled-Tuesday-Blitz-October-03-2023"]
[Site "Chess.com"]
[Date "2023.10.03"]
[Round "1"]
[White "SanchezKelvin"]
[Black "BRYANtheBUTCHER"]
[Result "0-1"]
[WhiteElo "2571"]
[BlackElo "2298"]
[TimeControl "180+1"]
[EndTime "14:06:41 PDT"]
[Termination "BRYANtheBUTCHER won by checkmate"]

1. e4 {[%clk 0:03:00.9]} 1... e5 {[%clk 0:02:59.9]} 2. Nf3 {[%clk 0:03:00.3]}
2... Nc6 {[%clk 0:03:00.1]} 3. Bb5 {[%clk 0:02:57.4]} 3... g6 {[%clk 0:03:00.5]}
4. Nc3 {[%clk 0:02:53.3]} 4... Bg7 {[%clk 0:03:00.5]} 5. d4 {[%clk 0:02:52.2]}
5... exd4 {[%clk 0:03:01.4]} 6. Nd5 {[%clk 0:02:49.5]} 6... h6 {[%clk
0:03:01.8]} 7. Bf4 {[%clk 0:02:40.3]} 7... d6 {[%clk 0:03:02.4]} 8. Nxd4 {[%clk
0:02:40.1]} 8... Bd7 {[%clk 0:03:00.3]} 9. Bxc6 {[%clk 0:02:30.3]} 9... bxc6
{[%clk 0:02:58.2]} 10. Nc3 {[%clk 0:02:30.4]} 10... Rb8 {[%clk 0:02:46.4]} 11.
Rb1 {[%clk 0:02:29.9]} 11... Nf6 {[%clk 0:02:43.7]} 12. O-O {[%clk 0:02:29]}
12... Nh5 {[%clk 0:02:38.6]} 13. Be3 {[%clk 0:02:29.1]} 13... O-O {[%clk
0:02:37.9]} 14. Qd2 {[%clk 0:02:28.2]} 14... Kh7 {[%clk 0:02:37.6]} 15. f4
{[%clk 0:02:23]} 15... c5 {[%clk 0:02:27.3]} 16. Nde2 {[%clk 0:02:22.2]} 16...
Re8 {[%clk 0:02:19.6]} 17. f5 {[%clk 0:02:02.3]} 17... Bc6 {[%clk 0:02:09.1]}
18. fxg6+ {[%clk 0:02:02]} 18... fxg6 {[%clk 0:02:09]} 19. Rf7 {[%clk
0:02:01.8]} 19... Re7 {[%clk 0:01:50.3]} 20. Rbf1 {[%clk 0:01:52.4]} 20... Qd7
{[%clk 0:01:42.7]} 21. Rxe7 {[%clk 0:01:38.8]} 21... Qxe7 {[%clk 0:01:43]} 22.
Nf4 {[%clk 0:01:16.2]} 22... Nxf4 {[%clk 0:01:38.8]} 23. Rxf4 {[%clk 0:01:14.9]}
23... Rxb2 {[%clk 0:01:37.3]} 24. h3 {[%clk 0:01:01.8]} 24... Be5 {[%clk
0:01:28.9]} 25. Rf1 {[%clk 0:00:56]} 25... g5 {[%clk 0:01:17.2]} 26. Nd5 {[%clk
0:00:55.4]} 26... Qg7 {[%clk 0:01:10.3]} 27. a3 {[%clk 0:00:48.1]} 27... Kg6
{[%clk 0:00:59]} 28. Qd3 {[%clk 0:00:45.3]} 28... Rb8 {[%clk 0:00:49.5]} 29. Rf5
{[%clk 0:00:44.1]} 29... Rf8 {[%clk 0:00:45]} 30. g4 {[%clk 0:00:43.8]} 30...
Rxf5 {[%clk 0:00:39.8]} 31. exf5+ {[%clk 0:00:43.4]} 31... Kf7 {[%clk
0:00:35.7]} 32. Nxc7 {[%clk 0:00:37]} 32... Bd4 {[%clk 0:00:27.3]} 33. Ne6
{[%clk 0:00:34.1]} 33... Qe5 {[%clk 0:00:25.4]} 34. Bxd4 {[%clk 0:00:33.3]}
34... Qe1+ {[%clk 0:00:19.8]} 35. Kh2 {[%clk 0:00:26.6]} 35... Qh1+ {[%clk
0:00:17.2]} 36. Kg3 {[%clk 0:00:26.8]} 36... Qg2# {[%clk 0:00:17.5]} 0-1

[Event "Late-Titled-Tuesday-Blitz-October-03-2023"]
[Site "Chess.com"]
[Date "2023.10.03"]
[Round "1"]
[White "Polish_fighter3000"]
[Black "Hananmo"]
[Result "1-0"]
[WhiteElo "3075"]
[BlackElo "2510"]
[TimeControl "180+1"]
[EndTime "14:06:44 PDT"]
[Termination "Polish_fighter3000 won by resignation"]

1. c4 {[%clk 0:03:00.9]} 1... Nf6 {[%clk 0:02:58.4]} 2. Nc3 {[%clk 0:02:58.2]}
2... g6 {[%clk 0:02:55.4]} 3. e4 {[%clk 0:02:56.8]} 3... d6 {[%clk 0:02:55.6]}
4. d4 {[%clk 0:02:57.2]} 4... Bg7 {[%clk 0:02:56.2]} 5. Nf3 {[%clk 0:02:57.9]}
5... O-O {[%clk 0:02:56.7]} 6. Be2 {[%clk 0:02:58.6]} 6... e5 {[%clk 0:02:57]}
7. O-O {[%clk 0:02:59.3]} 7... Nc6 {[%clk 0:02:57.5]} 8. d5 {[%clk 0:02:57.3]}
8... Ne7 {[%clk 0:02:57.5]} 9. b4 {[%clk 0:02:56]} 9... a5 {[%clk 0:02:50.9]}
10. bxa5 {[%clk 0:02:56.5]} 10... Rxa5 {[%clk 0:02:50.5]} 11. a4 {[%clk
0:02:56.6]} 11... b6 {[%clk 0:02:49.9]} 12. Ba3 {[%clk 0:02:53]} 12... Re8
{[%clk 0:02:46.3]} 13. Nd2 {[%clk 0:02:48.6]} 13... Nd7 {[%clk 0:02:40.6]} 14.
Nb5 {[%clk 0:02:39.7]} 14... f5 {[%clk 0:02:34.3]} 15. Bb4 {[%clk 0:02:37.7]}
15... Ra8 {[%clk 0:02:33.7]} 16. a5 {[%clk 0:02:37.9]} 16... bxa5 {[%clk
0:02:17.1]} 17. Bxa5 {[%clk 0:02:38.8]} 17... Nb6 {[%clk 0:01:26.4]} 18. Bxb6
{[%clk 0:02:38.8]} 18... Rxa1 {[%clk 0:01:23.9]} 19. Qxa1 {[%clk 0:02:39.7]}
19... cxb6 {[%clk 0:01:23.8]} 20. Qa3 {[%clk 0:02:40.6]} 20... fxe4 {[%clk
0:01:19.5]} 21. Nxd6 {[%clk 0:02:34.2]} 21... Rf8 {[%clk 0:01:15.7]} 22. Nxc8
{[%clk 0:02:30.6]} 22... Nxc8 {[%clk 0:01:13.6]} 23. Nxe4 {[%clk 0:02:31.3]}
23... Qh4 {[%clk 0:01:12.1]} 24. Bf3 {[%clk 0:02:24.9]} 24... g5 {[%clk
0:00:48]} 25. g3 {[%clk 0:02:19.9]} 25... Qh3 {[%clk 0:00:45.4]} 26. Nxg5 {[%clk
0:02:01.2]} 26... Qf5 {[%clk 0:00:43.3]} 27. h4 {[%clk 0:02:01.6]} 27... h6
{[%clk 0:00:35.7]} 28. Be4 {[%clk 0:02:01.2]} 28... Qg4 {[%clk 0:00:35.7]} 29.
Bh7+ {[%clk 0:02:00.4]} 29... Kh8 {[%clk 0:00:35.8]} 30. Ne6 {[%clk 0:02:00.7]}
30... Rf3 {[%clk 0:00:29.8]} 31. Bf5 {[%clk 0:01:28.3]} 31... Qxf5 {[%clk
0:00:17.6]} 32. Qa8 {[%clk 0:01:27.3]} 32... Qg4 {[%clk 0:00:11.4]} 33. Qxc8+
{[%clk 0:01:26.1]} 33... Bf8 {[%clk 0:00:11.6]} 34. Kh2 {[%clk 0:00:59.4]} 34...
Kg8 {[%clk 0:00:11.7]} 35. d6 {[%clk 0:00:50.9]} 35... e4 {[%clk 0:00:11.7]} 36.
d7 {[%clk 0:00:49.3]} 36... e3 {[%clk 0:00:05.3]} 37. d8=Q {[%clk 0:00:48.5]}
1-0

[Event "Late-Titled-Tuesday-Blitz-October-03-2023"]
[Site "Chess.com"]
[Date "2023.10.03"]
[Round "1"]
[White "Grischuk"]
[Black "santosalberto1987"]
[Result "1-0"]
[WhiteElo "3010"]
[BlackElo "2503"]
[TimeControl "180+1"]
[EndTime "14:06:44 PDT"]
[Termination "Grischuk won by resignation"]

1. d4 {[%clk 0:02:55.9]} 1... d5 {[%clk 0:02:59.4]} 2. Nf3 {[%clk 0:02:56.2]}
2... Nf6 {[%clk 0:02:59.3]} 3. Bg5 {[%clk 0:02:56.5]} 3... Nbd7 {[%clk
0:02:47.9]} 4. e3 {[%clk 0:02:55.2]} 4... g6 {[%clk 0:02:40]} 5. c4 {[%clk
0:02:54.9]} 5... c6 {[%clk 0:02:39.4]} 6. Nc3 {[%clk 0:02:54.8]} 6... Bg7 {[%clk
0:02:39.2]} 7. cxd5 {[%clk 0:02:51.5]} 7... cxd5 {[%clk 0:02:39.3]} 8. Bd3
{[%clk 0:02:45.8]} 8... O-O {[%clk 0:02:38.4]} 9. O-O {[%clk 0:02:46.2]} 9... b6
{[%clk 0:02:25.4]} 10. Qb3 {[%clk 0:02:45.5]} 10... Bb7 {[%clk 0:02:25]} 11.
Rfc1 {[%clk 0:02:43.2]} 11... Rc8 {[%clk 0:02:01.2]} 12. h3 {[%clk 0:02:34.7]}
12... Qc7 {[%clk 0:01:51.9]} 13. Bf4 {[%clk 0:02:31.5]} 13... Qd8 {[%clk
0:01:51.1]} 14. Nb5 {[%clk 0:02:10.9]} 14... a6 {[%clk 0:01:45.8]} 15. Bc7
{[%clk 0:02:10.4]} 15... Qe8 {[%clk 0:01:38.3]} 16. Na3 {[%clk 0:02:02.9]} 16...
b5 {[%clk 0:01:31.6]} 17. Rc2 {[%clk 0:01:56.2]} 17... Ne4 {[%clk 0:01:28.6]}
18. Rac1 {[%clk 0:01:56.1]} 18... Ndf6 {[%clk 0:01:28]} 19. Nb1 {[%clk
0:01:50.9]} 19... Ba8 {[%clk 0:01:01.3]} 20. Be5 {[%clk 0:01:46.2]} 20... Rxc2
{[%clk 0:00:59.9]} 21. Rxc2 {[%clk 0:01:45.9]} 21... Qd7 {[%clk 0:00:56.4]} 22.
Rc7 {[%clk 0:01:45.3]} 22... Qd8 {[%clk 0:00:56.3]} 23. Qc2 {[%clk 0:01:25.4]}
23... Nd6 {[%clk 0:00:53]} 24. Bxd6 {[%clk 0:01:23.3]} 24... Qxd6 {[%clk
0:00:52]} 25. Nbd2 {[%clk 0:01:23.9]} 25... e6 {[%clk 0:00:42.7]} 26. Ne5 {[%clk
0:01:08.2]} 26... Qb6 {[%clk 0:00:19.4]} 27. Ndf3 {[%clk 0:01:00.1]} 27... Ne4
{[%clk 0:00:14.4]} 28. Nd7 {[%clk 0:00:58]} 28... Qa5 {[%clk 0:00:13.2]} 29.
Nxf8 {[%clk 0:00:56.7]} 29... Bxf8 {[%clk 0:00:13.4]} 30. Rc8 {[%clk 0:00:39.3]}
30... Bb7 {[%clk 0:00:12.3]} 31. Rb8 {[%clk 0:00:38.9]} 31... Qb6 {[%clk
0:00:09.7]} 32. Bxe4 {[%clk 0:00:35.8]} 32... dxe4 {[%clk 0:00:09.6]} 33. Ne5
{[%clk 0:00:36.5]} 33... Kg7 {[%clk 0:00:09.2]} 34. Rxf8 {[%clk 0:00:36.2]} 1-0